bitfinex-derivatives/quotes_SOLF0:USTF0_20250328
["timestamp","ask_amount","ask_price","bid_price","bid_amount"]
[1743178869935,7.7075,129.82,129.81,0.05123543]
[1743178873530,7.7071,129.83,129.81,0.05123543]
[1743178873933,7.7074,129.82,129.81,0.05123543]
[1743178874433,7.7071,129.83,129.81,0.05123543]
[1743178874639,4.102,129.87,129.81,0.05123543]
[1743178875139,7.7068,129.83,129.81,0.05123543]
[1743178875932,4.102,129.87,129.82,19.27658356]
[1743178876334,7.706,129.85,129.82,19.27658356]
[1743178876533,4.102,129.87,129.82,19.27658356]
[1743178876734,29.94,129.89,129.82,19.27658356]
[1743178877139,29.9,129.91,129.84,19.3297358]
[1743178877435,33.9994,129.92,129.84,19.3297358]
[1743178877641,33.9994,129.92,129.86,7.705]
[1743178877937,33.9994,129.92,129.87,0.04921711]
[1743178878129,33.9994,129.92,129.87,62.04921711]
[1743178878326,4.0994,129.92,129.87,62.04921711]
[1743178878630,10.64693222,129.95,129.88,19.27658356]
[1743178878833,53.29708356,129.97,129.9,19.27658356]
[1743178879034,23.41708356,129.97,129.9,19.32790758]
[1743178879234,29.88,129.96,129.9,19.32790758]
[1743178879538,29.88,129.96,129.9,0.05132402]
[1743178880938,7.7018,129.92,129.9,0.05132402]
[1743178881335,7.7018,129.92,129.9,19.32790758]
[1743178881932,7.701,129.93,129.9,19.32790758]
[1743178882740,33.9805,129.97,129.9,19.32790758]
[1743178883339,53.25708356,129.97,129.9,19.32790758]
[1743178883642,7.7016,129.92,129.9,19.32790758]
[1743178884343,7.7011,129.93,129.9,19.32790758]
[1743178884542,7.7011,129.93,129.9,27.03050758]
[1743178884944,7.7015,129.92,129.9,19.32790758]
[1743178885641,7.7021,129.91,129.9,19.32790758]
[1743178886942,7.7021,129.91,129.9,0.05132402]
[1743178887650,7.7021,129.91,129.9,2.402e-05]
[1743178887845,37.5021,129.91,129.9,2.402e-05]
[1743178888440,45.2021,129.91,129.9,2.402e-05]
[1743178888740,66.61768356,129.91,129.9,2.402e-05]
[1743178889042,7.7068,129.83,129.82,19.27658356]
[1743178889745,2.139,129.91,129.84,7.706]
[1743178889949,2.139,129.91,129.86,19.27658356]
[1743178890149,0.05009023,129.89,129.86,19.3301626]
[1743178890355,0.05009023,129.89,129.86,56.8350626]
[1743178890554,0.05009023,129.89,129.88,19.27658356]
[1743178892459,0.05009023,129.89,129.88,26.98038356]
[1743178893054,2.139,129.98,129.88,19.27658356]
[1743178893358,2.139,129.98,129.92,19.27658356]
[1743178893551,19.27658356,130.0,129.92,49.05658356]
[1743178893752,31.7337,130.01,129.92,49.05658356]
[1743178894151,19.27658356,130.0,129.95,0.04856746]
[1743178894356,49.03658356,130.0,129.95,0.04856746]
[1743178894751,7.6991,129.96,129.95,0.04856746]
[1743178898766,7.6988,129.97,129.95,0.04856746]
[1743178898961,29.7,130.0,129.95,0.04856746]
[1743178899267,29.68,130.0,129.95,0.04856746]
[1743178899468,7.6991,129.96,129.95,0.04856746]
[1743178904271,7.7009,129.93,129.92,29.78]
[1743178904468,29.64,129.97,129.89,48.91658356]
[1743178904770,2.0533,129.96,129.89,48.91658356]
[1743178904966,2.0533,129.96,129.89,19.27658356]
[1743178905363,0.05126308,129.94,129.91,0.05847723]
[1743178905765,29.81126308,129.94,129.91,7.723e-05]
[1743178905966,7.7015,129.92,129.91,7.723e-05]
[1743178906459,15.4015,129.92,129.91,7.723e-05]
[1743178907573,7.7015,129.92,129.91,7.723e-05]
[1743178909577,9.7002,129.92,129.91,7.723e-05]
[1743178911872,7.7015,129.92,129.91,7.723e-05]
[1743178918276,7.7011,129.93,129.91,7.723e-05]
[1743178919882,7.7015,129.92,129.91,7.723e-05]
[1743178920588,7.7011,129.93,129.91,7.70187723]
[1743178920785,0.05126308,129.94,129.92,19.27658356]
[1743178921289,0.05126308,129.94,129.93,7.7009]
[1743178922285,3.9419,130.01,129.94,19.27658356]
[1743178922491,3.9419,130.01,129.96,19.27658356]
[1743178923186,7.6983,129.98,129.96,19.27658356]
[1743178923387,7.6983,129.98,129.97,0.05660205]
[1743178924193,7.6976,129.99,129.97,0.05660205]
[1743178924589,0.04974848,130.0,129.97,0.05660205]
[1743178925185,7.6976,129.99,129.97,0.05660205]
[1743178926089,7.6979,129.98,129.97,0.05660205]
[1743178928194,7.6979,129.98,129.97,2.05e-06]
[1743178936399,26.97448356,129.98,129.97,2.05e-06]
[1743178936794,29.10918356,129.98,129.97,2.05e-06]
[1743178938694,7.7015,129.92,129.91,3.19601]
[1743178940198,7.7015,129.92,129.91,1e-05]
[1743178940597,7.7021,129.91,129.9,1.081e-05]
[1743178950304,26.97868356,129.91,129.9,1.081e-05]
[1743178951612,7.7021,129.91,129.9,1.081e-05]
[1743178956912,29.62858078,129.93,129.9,1.081e-05]
[1743178956913,0.04858078,129.93,129.9,1.081e-05]
[1743178957212,0.04858078,129.93,129.91,81.27658356]
[1743178957415,29.58,129.98,129.92,7.7015]
[1743178957916,7.6999,129.95,129.92,7.7015]
[1743178958114,29.58,129.98,129.91,26.97838356]
[1743178958516,7.7006,129.94,129.91,19.27658356]
[1743178958717,7.7006,129.94,129.93,0.05615011]
[1743178959321,29.54,129.95,129.93,5.011e-05]
[1743178960128,7.7003,129.94,129.93,5.011e-05]
[1743178961733,26.97688356,129.94,129.93,5.011e-05]
[1743178961929,7.705,129.86,129.85,2.0571]
[1743178962125,29.54,129.9,129.84,19.27658356]
[1743178962329,48.81658356,129.9,129.82,23.22248356]
[1743178962631,44.9459,129.9,129.82,23.22248356]
[1743178963135,7.7056,129.86,129.85,0.05245105]
[1743178967732,7.7068,129.83,129.82,73.32302957]
[1743178968032,37.1268,129.83,129.82,60.15282957]
[1743178968825,7.7074,129.82,129.81,0.0567529]
[1743178973239,0.05815551,129.84,129.81,0.0567529]
[1743178973433,29.34,129.88,129.83,19.27658356]
[1743178973835,29.36,129.91,129.83,19.27658356]
[1743178974236,7.7059,129.85,129.83,19.27658356]
[1743178974632,7.76374802,129.85,129.83,19.33421985]
[1743178974836,0.05784802,129.85,129.83,19.33421985]
[1743178976144,7.76354802,129.85,129.83,19.33421985]
[1743178977037,0.05784802,129.85,129.83,19.33421985]
[1743178977435,0.05784802,129.85,129.83,27.04061985]
[1743178977836,0.05784802,129.85,129.83,19.33421985]
[1743178978135,0.05784802,129.85,129.84,7.7062]
[1743178980143,0.05784802,129.85,129.83,29.11831985]
[1743178980343,0.05784802,129.85,129.83,21.41181985]
[1743178980845,0.05784802,129.85,129.84,7.7062]
[1743178981647,19.27658356,129.92,129.83,21.41181985]
[1743178981648,7.7041,129.88,129.86,7.705]
[1743178981845,31.3194,129.93,129.85,48.49658356]
[1743178982046,31.2994,129.93,129.85,48.49658356]
[1743178982243,7.7042,129.88,129.85,56.20188356]
[1743178982540,31.2994,129.93,129.85,29.22]
[1743178982541,19.27658356,129.92,129.85,29.22]
[1743178982746,29.2,129.9,129.85,29.22]
[1743178982941,7.7038,129.88,129.87,0.05877132]
[1743178984044,7.7038,129.88,129.87,7.132e-05]
[1743178984252,26.97658356,129.88,129.78,52.47608356]
[1743178984443,26.97658356,129.88,129.79,7.7091]
[1743178984444,29.2,129.87,129.79,7.7091]
[1743178984644,7.7073,129.83,129.79,7.7091]
[1743178985044,29.2,129.87,129.79,7.7091]
[1743178985253,0.04956733,129.84,129.82,0.05090759]
[1743178985842,7.7068,129.83,129.82,0.05090759]
[1743178987845,7.7068,129.83,129.82,7.59e-06]
[1743178988046,36.9468,129.83,129.82,7.59e-06]
[1743178989349,7.7109,129.77,129.74,23.37058356]
[1743178989550,29.22,129.8,129.73,29.22]
[1743178990455,19.27658356,129.79,129.73,29.22]
[1743178990751,7.711,129.76,129.75,0.05336572]
[1743178990941,7.711,129.76,129.75,6.572e-05]
[1743178993951,36.9107,129.77,129.75,6.572e-05]
[1743178994156,29.2,129.77,129.75,6.572e-05]
[1743178994546,7.711,129.76,129.75,6.572e-05]
[1743178995251,36.9106,129.77,129.75,6.572e-05]
[1743178995452,0.05401083,129.78,129.75,6.572e-05]
[1743178995755,0.05401083,129.78,129.75,19.27664928]
[1743178996359,0.05401083,129.78,129.75,26.98804928]
[1743178997548,7.711,129.76,129.75,6.572e-05]
[1743179001346,7.7105,129.77,129.75,6.572e-05]
[1743179001752,29.27401083,129.78,129.75,6.572e-05]
[1743179001951,7.711,129.76,129.75,6.572e-05]
[1743179006869,0.05401083,129.78,129.75,6.572e-05]
[1743179007363,7.76421083,129.78,129.75,6.572e-05]
[1743179007864,7.76421083,129.78,129.75,7.71156572]
[1743179008367,7.7104,129.77,129.75,6.572e-05]
[1743179009067,7.76401083,129.78,129.75,7.71146572]
[1743179009266,0.05401083,129.78,129.75,6.572e-05]
[1743179009467,7.7107,129.77,129.75,6.572e-05]
[1743179009661,0.05401083,129.78,129.75,6.572e-05]
[1743179010066,7.711,129.76,129.75,6.572e-05]
[1743179010460,0.05401083,129.78,129.75,6.572e-05]
[1743179010660,7.7107,129.77,129.75,6.572e-05]
[1743179010860,0.05401083,129.78,129.75,6.572e-05]
[1743179011469,0.05401083,129.78,129.76,7.7106]
[1743179011663,29.22,129.83,129.77,19.27658356]
[1743179011861,7.7079,129.82,129.77,19.27658356]
[1743179012061,7.7079,129.82,129.79,7.7091]
[1743179012268,7.708,129.81,129.77,19.27658356]
[1743179012870,0.05566716,129.8,129.79,7.7091]
[1743179013366,57.92663742,129.9,129.79,48.49658356]
[1743179013566,23.27408356,129.89,129.81,19.27658356]
[1743179013863,7.7059,129.85,129.81,26.98418356]
[1743179014173,7.7059,129.85,129.81,19.27658356]
[1743179014365,0.04967582,129.84,129.82,0.05648546]
[1743179014562,7.7053,129.86,129.82,7.76328546]
[1743179014869,0.05458212,129.84,129.82,0.05648546]
[1743179015063,33.2175,129.89,129.82,0.05648546]
[1743179015269,0.05614315,129.87,129.82,0.05648546]
[1743179015671,7.7062,129.85,129.82,0.05648546]
[1743179015863,0.05614315,129.87,129.82,0.05648546]
[1743179016471,7.7054,129.86,129.82,0.05648546]
[1743179016664,7.7054,129.86,129.82,29.27648546]
[1743179017771,7.7057,129.85,129.82,29.27648546]
[1743179018270,0.05614315,129.87,129.82,29.27648546]
[1743179019272,7.7063,129.84,129.82,29.27648546]
[1743179019770,7.75609967,129.84,129.82,29.27648546]
[1743179020675,0.04979967,129.84,129.83,19.27658356]
[1743179020867,29.22,129.89,129.83,48.49658356]
[1743179021072,7.7053,129.86,129.83,58.16118356]
[1743179021374,283.56,129.92,129.85,19.27658356]
[1743179021672,50.52078356,129.93,129.85,19.27658356]
[1743179022066,0.04933809,129.9,129.88,0.05701748]
[1743179022267,7.7032,129.89,129.88,0.05701748]
[1743179028076,7.75223809,129.9,129.88,0.05701748]
[1743179028274,0.04933809,129.9,129.88,0.05701748]
[1743179028972,7.7032,129.89,129.88,0.05701748]
[1743179031076,0.04933809,129.9,129.88,0.05701748]
[1743179031776,7.7032,129.89,129.88,0.05701748]
[1743179034079,0.04933809,129.9,129.88,0.05701748]
[1743179034483,0.04933809,129.9,129.88,7.76081748]
[1743179034673,0.04933809,129.9,129.88,0.05701748]
[1743179035080,0.04933809,129.9,129.89,7.7032]
[1743179036770,0.04933809,129.9,129.89,36.9032]
[1743179038878,50.43308356,129.97,129.91,7.7016]
[1743179039483,7.7011,129.93,129.9,7.7023]
[1743179039885,0.05375187,129.93,129.91,7.7017]
[1743179040284,0.05375187,129.93,129.9,19.3308652]
[1743179040478,0.05375187,129.93,129.91,7.7017]
[1743179041179,0.05375187,129.93,129.9,19.3308652]
[1743179041180,2.0555,129.98,129.92,48.45658356]
[1743179041576,21.27218356,130.01,129.94,7.7002]
[1743179041784,29.18,130.0,129.92,48.45658356]
[1743179042386,7.6989,129.97,129.95,0.05110417]
[1743179045488,7.6991,129.96,129.95,0.05110417]
[1743179046087,7.6987,129.97,129.95,0.05110417]
[1743179046587,7.6989,129.97,129.95,0.05110417]
[1743179046794,29.18,130.0,129.95,0.05110417]
[1743179047893,7.6989,129.97,129.95,7.75070417]
[1743179048101,29.18,130.0,129.95,7.75070417]
[1743179048598,29.18,130.0,129.95,0.05110417]
[1743179049092,7.6991,129.96,129.95,0.05110417]
[1743179051997,19.27658356,129.97,129.9,48.45658356]
[1743179052205,7.7021,129.91,129.9,29.18]
[1743179052998,7.7021,129.91,129.9,41.47024427]
[1743179055006,7.7021,129.91,129.9,29.18]
[1743179056000,0.04894093,129.92,129.9,48.38442747]
[1743179056610,0.04894093,129.92,129.91,7.7021]
[1743179056800,0.04894093,129.92,129.9,48.38442747]
[1743179057206,7.7021,129.91,129.9,48.38442747]
[1743179057704,7.75064093,129.92,129.9,56.08702747]
[1743179057906,0.04894093,129.92,129.9,56.08702747]
[1743179058107,0.04894093,129.92,129.9,48.38442747]
[1743179058409,0.04894093,129.92,129.91,7.7021]
[1743179060605,7.7005,129.94,129.91,7.7021]
[1743179061006,7.7005,129.94,129.9,50.42682747]
[1743179061206,7.7012,129.93,129.9,48.38442747]
[1743179061410,7.7012,129.93,129.91,7.7016]
[1743179061710,0.02188756,129.93,129.91,7.75942878]
[1743179061905,0.02188756,129.93,129.92,26.90592747]
[1743179063004,1.9851,130.0,129.95,7.6996]
[1743179063211,31.1651,130.0,129.92,19.20442747]
[1743179063505,31.1651,130.0,129.93,29.18]
[1743179063711,7.6989,129.97,129.94,7.7]
[1743179064103,7.6989,129.97,129.94,7.74984454]
[1743179065005,7.6992,129.96,129.94,7.74984454]
[1743179065214,1.9851,130.0,129.95,7.6997]
[1743179065612,7.6982,129.98,129.95,7.6997]
[1743179065804,1.9851,130.0,129.95,7.6997]
[1743179066208,7.6985,129.97,129.94,26.95417201]
[1743179067818,7.6985,129.97,129.95,7.6997]
[1743179068319,7.6994,129.96,129.94,26.95427201]
[1743179068510,1.9851,130.0,129.94,19.25427201]
[1743179069120,7.6988,129.97,129.94,19.25427201]
[1743179069918,7.6988,129.97,129.95,7.6997]
[1743179070113,7.6992,129.96,129.94,19.25427201]
[1743179070315,1.9851,130.0,129.94,0.04984454]
[1743179070518,21.18952747,130.0,129.94,0.04984454]
[1743179071219,7.6988,129.97,129.94,0.04984454]
[1743179071711,7.6988,129.97,129.94,7.74964454]
[1743179073419,7.6988,129.97,129.95,7.6996]
[1743179075014,7.6988,129.97,129.96,12.27997077]
[1743179075713,7.6992,129.96,129.95,12.27997077]
[1743179076112,12.27997077,129.97,129.94,0.04984454]
[1743179076420,7.6997,129.95,129.94,0.04984454]
[1743179080439,19.97967077,129.95,129.94,0.04984454]
[1743179080722,7.6997,129.95,129.94,0.04984454]
[1743179081624,12.27997077,129.95,129.9,12.27997077]
[1743179081825,7.7021,129.91,129.9,12.27997077]
[1743179082025,12.27997077,129.94,129.89,12.27997077]
[1743179082332,7.7027,129.9,129.89,12.27997077]
[1743179082518,12.27997077,129.93,129.88,12.27997077]
[1743179082921,7.7032,129.9,129.89,0.0511561]
[1743179084433,29.20984454,129.92,129.89,12.33112687]
[1743179085228,29.20984454,129.92,129.9,12.27997077]
[1743179085529,7.7021,129.91,129.9,12.27997077]
[1743179086432,36.91164454,129.92,129.9,12.27997077]
[1743179086631,29.20984454,129.92,129.91,12.27997077]
[1743179086831,0.04984454,129.92,129.91,12.27997077]
[1743179087529,0.04984454,129.92,129.91,19.98207077]
[1743179088734,0.04984454,129.92,129.91,12.27997077]
[1743179090636,7.75134454,129.92,129.91,12.27997077]
[1743179091837,7.7023,129.91,129.9,12.27997077]
[1743179092934,7.75164454,129.92,129.9,12.27997077]
[1743179093133,7.75164454,129.92,129.91,12.27997077]
[1743179094035,0.04984454,129.92,129.91,12.27997077]
[1743179094640,7.75134454,129.92,129.91,12.27997077]
[1743179097540,0.04984454,129.92,129.91,12.27997077]
[1743179098841,0.04984454,129.92,129.91,19.98207077]
[1743179102245,29.16,129.97,129.92,7.701]
[1743179102448,41.43997077,129.97,129.93,12.27997077]
[1743179102637,7.6999,129.95,129.93,12.27997077]
[1743179103353,7.6999,129.95,129.93,12.33833694]
[1743179105443,7.7003,129.94,129.93,0.05836617]
[1743179106641,29.16,129.97,129.93,12.33833694]
[1743179106642,7.7,129.95,129.93,12.33833694]
[1743179106945,12.27997077,129.97,129.93,12.33833694]
[1743179107145,41.43997077,129.97,129.93,12.33833694]
[1743179107340,7.7003,129.94,129.93,12.33833694]
[1743179107542,7.7003,129.94,129.93,0.05836617]
[1743179111450,7.7003,129.94,129.9,12.27997077]
[1743179111451,7.7021,129.91,129.9,12.27997077]
[1743179112353,29.16,129.94,129.9,12.27997077]
[1743179112549,0.05246216,129.92,129.9,12.27997077]
[1743179112953,7.75406216,129.92,129.9,12.27997077]
[1743179113447,0.05246216,129.92,129.89,12.33099293]
[1743179113647,12.27997077,129.9,129.89,0.05102216]
[1743179113958,12.27997077,129.9,129.85,376.27997077]
[1743179114155,41.43997077,129.89,129.85,12.27997077]
[1743179114450,29.16,129.89,129.86,12.27997077]
[1743179114644,29.16,129.89,129.87,12.27997077]
[1743179114846,2.1187,129.91,129.88,12.27997077]
[1743179115051,0.05307214,129.89,129.87,12.33666941]
[1743179115353,7.7038,129.88,129.87,12.33666941]
[1743179116044,0.05307214,129.89,129.87,12.33666941]
[1743179116045,7.75637214,129.89,129.87,12.33666941]
[1743179116249,0.05307214,129.89,129.88,12.27997077]
[1743179119459,7.75627214,129.89,129.88,12.27997077]
[1743179119856,0.05307214,129.89,129.88,12.27997077]
[1743179120360,7.75627214,129.89,129.88,12.27997077]
[1743179122266,33.1409,129.95,129.88,12.27997077]
[1743179122564,7.7012,129.93,129.91,12.27997077]
[1743179123265,7.75736701,129.93,129.91,12.33627549]
[1743179123566,0.05616701,129.93,129.92,12.27997077]
[1743179125267,7.7015,129.92,129.91,0.05630472]
[1743179125566,0.05616701,129.93,129.91,0.05630472]
[1743179125757,0.05616701,129.93,129.92,12.27997077]
[1743179126264,0.05616701,129.93,129.92,19.98147077]
[1743179126466,0.05616701,129.93,129.92,12.27997077]
[1743179126856,0.05616701,129.93,129.91,12.33627549]
[1743179127866,41.47613778,129.93,129.91,0.05630472]
[1743179128067,12.27997077,129.92,129.91,0.05630472]
[1743179128253,41.41997077,129.92,129.91,0.05630472]
[1743179128459,49.12147077,129.92,129.91,0.05630472]
[1743179128765,36.8415,129.92,129.91,0.05630472]
[1743179130160,7.7015,129.92,129.91,0.05630472]
[1743179130359,36.8415,129.92,129.91,0.05630472]
[1743179130564,41.41997077,129.92,129.87,12.27997077]
[1743179130765,12.27997077,129.91,129.87,12.27997077]
[1743179131165,45.45017077,129.92,129.87,12.27997077]
[1743179131368,33.1702,129.92,129.88,12.27997077]
[1743179131555,33.1702,129.92,129.89,12.27997077]
[1743179131759,0.05085739,129.91,129.89,0.0578637]
[1743179131961,0.05085739,129.91,129.9,12.27997077]
[1743179133770,7.75295739,129.91,129.9,12.27997077]
[1743179134467,7.7026,129.9,129.89,0.0578637]
[1743179134768,7.7026,129.9,129.89,12.33783447]
[1743179135361,7.7026,129.9,129.89,0.0578637]
[1743179135964,7.7026,129.9,129.89,6.37e-05]
[1743179138570,19.98257077,129.9,129.89,6.37e-05]
[1743179138760,7.7026,129.9,129.89,6.37e-05]
[1743179145670,7.75315739,129.91,129.89,12.28003447]
[1743179145871,7.75315739,129.91,129.9,12.27997077]
[1743179146073,7.75315739,129.91,129.89,12.28003447]
[1743179146468,100.43627487,130.0,129.9,19.98257077]
[1743179146678,46.58523742,129.99,129.96,12.27997077]
[1743179146869,46.58523742,129.99,129.95,12.27997077]
[1743179147073,12.27997077,129.98,129.93,12.27997077]
[1743179147375,12.27997077,129.98,129.94,12.27997077]
[1743179147575,4.0644,129.99,129.95,12.27997077]
[1743179147775,0.04951075,129.97,129.95,12.33046805]
[1743179147972,0.04951075,129.97,129.95,0.05049728]
[1743179148176,7.6991,129.96,129.95,0.05049728]
[1743179152078,7.74831075,129.97,129.95,12.33046805]
[1743179152275,0.04951075,129.97,129.95,12.33046805]
[1743179152479,0.04951075,129.97,129.96,12.27997077]
[1743179154074,7.74801075,129.97,129.96,12.27997077]
[1743179154781,7.6991,129.96,129.95,12.33046805]
[1743179155082,0.04951075,129.97,129.95,12.33046805]
[1743179155282,7.6991,129.96,129.95,12.33046805]
[1743179155483,0.04951075,129.97,129.95,0.05049728]
[1743179155671,7.74811075,129.97,129.96,12.27997077]
[1743179156182,7.6991,129.96,129.95,0.05049728]
[1743179157281,7.6991,129.96,129.95,12.33046805]
[1743179157480,0.04951075,129.97,129.95,12.33046805]
[1743179157677,0.04951075,129.97,129.96,12.27997077]
[1743179157989,7.74801075,129.97,129.96,12.27997077]
[1743179158286,0.04951075,129.97,129.96,12.27997077]
[1743179158586,7.74801075,129.97,129.96,12.27997077]
[1743179159684,0.04951075,129.97,129.96,12.27997077]
[1743179160281,0.04951075,129.97,129.96,19.97907077]
[1743179160480,0.04951075,129.97,129.96,12.27997077]
[1743179161081,7.74801075,129.97,129.96,12.27997077]
[1743179162788,0.04951075,129.97,129.96,19.97907077]
[1743179163089,0.04951075,129.97,129.95,0.05049728]
[1743179163290,7.6991,129.96,129.95,0.05049728]
[1743179163492,7.6991,129.96,129.95,12.33046805]
[1743179165792,7.74831075,129.97,129.95,12.33046805]
[1743179165982,7.74831075,129.97,129.96,12.27997077]
[1743179166385,0.04951075,129.97,129.96,12.27997077]
[1743179167794,0.04951075,129.97,129.96,19.97907077]
[1743179167997,0.04951075,129.97,129.96,12.27997077]
[1743179170095,7.74801075,129.97,129.96,12.27997077]
[1743179170690,0.04951075,129.97,129.96,12.27997077]
[1743179171501,7.74801075,129.97,129.96,12.27997077]
[1743179172000,54.05103532,130.1,129.96,413.09997077]
[1743179172204,12.27997077,130.09,130.04,12.27997077]
[1743179172704,7.6932,130.06,130.04,12.27997077]
[1743179172905,12.27997077,130.09,130.04,12.27997077]
[1743179173093,0.04942712,130.06,130.04,12.33257603]
[1743179173299,0.04942712,130.06,130.05,12.27997077]
[1743179173701,0.04942712,130.06,130.04,12.33257603]
[1743179175702,12.32939789,130.06,129.92,610.92]
[1743179175897,12.32939789,130.06,130.01,12.27997077]
[1743179175898,12.27997077,130.06,130.01,12.27997077]
[1743179176103,12.27997077,130.05,130.01,12.27997077]
[1743179176407,19.97407077,130.05,130.01,12.27997077]
[1743179176803,12.27997077,130.05,130.0,12.27997077]
[1743179177004,12.27997077,130.05,130.02,0.05503782]
[1743179177005,7.75317873,130.04,130.02,0.05503782]
[1743179177808,7.6949,130.03,130.02,0.05503782]
[1743179178011,19.97487077,130.03,130.02,0.05503782]
[1743179178198,7.6949,130.03,130.02,0.05503782]
[1743179178509,19.97487077,130.03,130.02,0.05503782]
[1743179178710,7.6949,130.03,130.02,0.05503782]
[1743179180406,21.9853495,130.04,130.02,0.05503782]
[1743179180606,2.01077873,130.04,130.02,0.05503782]
[1743179181210,7.6949,130.03,130.02,0.05503782]
[1743179182809,0.05847873,130.04,130.02,12.33500859]
[1743179185715,7.6949,130.03,130.02,12.33500859]
[1743179185910,0.05847873,130.04,130.02,12.33500859]
[1743179186110,0.05847873,130.04,130.03,12.27997077]
[1743179187619,7.75287873,130.04,130.03,12.27997077]
[1743179189116,12.27997077,130.09,130.03,12.27997077]
[1743179189311,29.1,130.1,130.06,12.27997077]
[1743179189508,41.37997077,130.1,130.05,12.27997077]
[1743179189712,12.27997077,130.09,130.05,12.27997077]
[1743179189917,7.6932,130.06,130.05,12.27997077]
[1743179191317,7.6932,130.06,130.04,0.05683996]
[1743179191318,7.6938,130.05,130.04,12.33681073]
[1743179191919,7.6938,130.05,130.04,0.05683996]
[1743179192122,7.6938,130.05,130.04,12.33681073]
[1743179198928,0.05300544,130.07,130.04,12.33681073]
[1743179199130,0.05300544,130.07,130.06,12.27997077]
[1743179199534,7.74590544,130.07,130.06,12.27997077]
[1743179200134,0.05300544,130.07,130.04,12.33681073]
[1743179200528,0.05300544,130.07,130.05,12.27997077]
[1743179200728,7.6932,130.06,130.05,12.27997077]
[1743179202228,7.74590544,130.07,130.05,12.27997077]
[1743179202429,7.74590544,130.07,130.06,12.27997077]
[1743179202934,7.6935,130.06,130.05,12.27997077]
[1743179204036,7.74590544,130.07,130.05,12.27997077]
[1743179204239,7.74590544,130.07,130.06,12.27997077]
[1743179205338,7.6936,130.06,130.05,12.27997077]
[1743179210537,7.74590544,130.07,130.05,12.27997077]
[1743179210739,7.74590544,130.07,130.06,12.27997077]
[1743179211632,0.05300544,130.07,130.06,12.27997077]
[1743179212541,0.05300544,130.07,130.06,19.97317077]
[1743179213345,7.74560544,130.07,130.06,12.27997077]
[1743179214839,0.05300544,130.07,130.06,12.27997077]
[1743179215433,0.05300544,130.07,130.06,19.97317077]
[1743179216544,132.30580294,130.17,130.09,7.6913]
[1743179216846,14.33117077,130.15,130.11,12.27997077]
[1743179217038,7.6886,130.14,130.11,12.27997077]
[1743179217650,9.7394,130.15,130.12,12.27997077]
[1743179217850,2.0512,130.15,130.12,12.27997077]
[1743179218647,2.0512,130.15,130.11,0.05104533]
[1743179218848,2.0512,130.15,130.12,12.27997077]
[1743179219349,7.6887,130.14,130.12,12.27997077]
[1743179219552,2.0512,130.15,130.11,12.3310161]
[1743179219754,2.0512,130.15,130.12,12.27997077]
[1743179220149,14.33117077,130.15,130.11,0.05104533]
[1743179220854,7.6893,130.13,130.11,0.05104533]
[1743179221742,7.6893,130.13,130.02,29.06]
[1743179221743,12.27997077,130.12,130.02,29.06]
[1743179221951,12.27997077,130.11,130.07,12.27997077]
[1743179222254,7.6913,130.1,130.08,12.27997077]
[1743179222754,0.05707008,130.1,130.08,12.33635331]
[1743179223249,0.05707008,130.1,130.08,0.05638254]
[1743179223650,7.6914,130.09,130.08,0.05638254]
[1743179224156,0.05707008,130.1,130.08,12.33635331]
[1743179224347,0.05707008,130.1,130.09,12.27997077]
[1743179227053,7.74787008,130.1,130.09,12.27997077]
[1743179227654,0.05707008,130.1,130.09,12.27997077]
[1743179228650,7.74787008,130.1,130.09,12.27997077]
[1743179231261,0.05707008,130.1,130.09,12.27997077]
[1743179232056,7.74787008,130.1,130.09,12.27997077]
[1743179233457,0.05707008,130.1,130.09,19.97137077]
[1743179235959,31.1112,130.15,130.1,7.6906]
[1743179235960,7.6899,130.12,130.1,7.6906]
[1743179236259,7.6899,130.12,130.11,12.27997077]
[1743179239059,7.6894,130.13,130.11,19.97017077]
[1743179239261,7.6894,130.13,130.12,12.27997077]
[1743179240860,7.6899,130.12,130.11,12.27997077]
[1743179242358,7.6902,130.11,130.1,12.3353708]
[1743179243560,7.6899,130.12,130.1,12.3353708]
[1743179243761,7.6899,130.12,130.11,12.27997077]
[1743179243960,12.27997077,130.14,130.1,12.3353708]
[1743179244162,7.6902,130.12,130.1,12.3353708]
[1743179246367,7.6902,130.11,130.1,12.3353708]
[1743179246567,43.39117077,130.15,130.1,12.3353708]
[1743179246776,31.1112,130.15,130.11,12.27997077]
[1743179246964,7.6894,130.13,130.11,12.27997077]
[1743179247158,7.6894,130.13,130.12,12.27997077]
[1743179248665,2.0512,130.15,130.11,12.27997077]
[1743179248870,14.33117077,130.15,130.1,12.3353708]
[1743179249268,7.69,130.12,130.1,12.3353708]
[1743179249467,14.33117077,130.15,130.1,12.3353708]